[Event "2. Itzehoer Schach Open"]
[Site "Itzehoe, Germany"]
[Date "2023.05.01"]
[Round "5.27"]
[White "Wolff, Ole"]
[Black "Neffgen, Klaus"]
[Result "1-0"]
[TimeControl "90 min / 40 Züge + 30 min + 30 Sek pro Zug"]
[WhiteElo "1097"]
[BlackElo "1533"]

1. e4 {[%clk 01:20:00]} {[%emt 00:11:00]} c6 {[%clk 01:30:59]} {[%emt
00:00:03]} 2. d4 {[%clk 01:20:24]} {[%emt 00:00:05]} d5 {[%clk 01:31:27]}
{[%emt 00:00:02]} 3. exd5 {[%clk 01:20:48]} {[%emt 00:00:06]} cxd5 {[%clk
01:31:55]} {[%emt 00:00:02]} 4. c4 {[%clk 01:21:10]} {[%emt 00:00:08]} Nf6
{[%clk 01:32:07]} {[%emt 00:00:18]} 5. Nc3 {[%clk 01:21:27]} {[%emt 00:00:12]}
g6 {[%clk 01:32:29]} {[%emt 00:00:09]} 6. cxd5 {[%clk 01:21:34]} {[%emt
00:00:23]} Nxd5 {[%clk 01:32:11]} {[%emt 00:00:48]} 7. Nf3 {[%clk 01:21:14]}
{[%emt 00:00:49]} Nb6 {[%clk 01:31:51]} {[%emt 00:00:50]} 8. Be3 {[%clk
01:19:22]} {[%emt 00:02:22]} Bg7 {[%clk 01:32:12]} {[%emt 00:00:10]} 9. Bb5+
{[%clk 01:18:55]} {[%emt 00:00:56]} Bd7 {[%clk 01:32:32]} {[%emt 00:00:11]} 10.
Be2 {[%clk 01:19:19]} {[%emt 00:00:06]} O-O {[%clk 01:32:24]} {[%emt 00:00:17]}
11. O-O {[%clk 01:19:48]} Bc6 {[%clk 01:27:48]} {[%emt 00:05:28]} 12. Qb3
{[%clk 01:16:14]} {[%emt 00:04:04]} Re8 {[%clk 01:24:36]} {[%emt 00:03:42]} 13.
Rfd1 {[%clk 01:16:01]} {[%emt 00:00:43]} e6 {[%clk 01:21:54]} {[%emt 00:03:12]}
14. a4 {[%clk 01:11:38]} {[%emt 00:04:52]} a5 {[%clk 01:20:26]} {[%emt
00:01:59]} 15. Bb5 {[%clk 01:11:13]} {[%emt 00:00:56]} Nd5 {[%clk 01:14:45]}
{[%emt 00:06:10]} 16. Bxc6 {[%clk 00:59:49]} {[%emt 00:11:54]} bxc6 {[%clk
01:06:03]} {[%emt 00:09:13]} 17. Rac1 {[%clk 00:57:08]} {[%emt 00:03:10]} Na6
{[%clk 01:04:32]} {[%emt 00:02:01]} 18. Ne4 {[%clk 00:55:33]} {[%emt 00:02:05]}
Rb8 {[%clk 01:03:19]} {[%emt 00:01:43]} 19. Qc4 {[%clk 00:50:08]} {[%emt
00:05:54]} Nab4 {[%clk 00:55:49]} {[%emt 00:08:01]} 20. Nc5 {[%clk 00:48:08]}
{[%emt 00:02:30]} Rb6 {[%clk 00:45:39]} {[%emt 00:10:40]} 21. Ne5 {[%clk
00:42:41]} {[%emt 00:05:56]} Nxe3 {[%clk 00:41:43]} {[%emt 00:04:26]} 22. fxe3
{[%clk 00:42:56]} {[%emt 00:00:15]} Qg5 {[%clk 00:42:06]} {[%emt 00:00:07]} 23.
Rc3 {[%clk 00:40:18]} {[%emt 00:03:08]} Bxe5 {[%clk 00:41:59]} {[%emt
00:00:37]} 24. dxe5 {[%clk 00:40:43]} {[%emt 00:00:05]} Qxe5 {[%clk 00:42:14]}
{[%emt 00:00:16]} 25. Nd7 {[%clk 00:40:31]} {[%emt 00:00:42]} Qc7 {[%clk
00:40:08]} {[%emt 00:02:35]} 26. Nf6+ {[%clk 00:40:06]} {[%emt 00:00:55]} Kf8
{[%clk 00:39:37]} {[%emt 00:01:01]} 27. Qc5+ {[%clk 00:40:08]} {[%emt
00:00:29]} Qe7 {[%clk 00:35:26]} {[%emt 00:04:40]} 28. Nd7+ {[%clk 00:40:30]}
{[%emt 00:00:08]} Kg8 {[%clk 00:34:52]} {[%emt 00:01:04]} 29. Qxe7 {[%clk
00:40:52]} {[%emt 00:00:09]} Rxe7 {[%clk 00:33:46]} {[%emt 00:01:36]} 30. Nxb6
{[%clk 00:41:12]} {[%emt 00:00:09]} Rb7 {[%clk 00:33:28]} {[%emt 00:00:48]} 31.
Nc4 {[%clk 00:41:09]} {[%emt 00:00:33]} Na2 {[%clk 00:32:48]} {[%emt 00:01:10]}
32. Rcd3 {[%clk 00:41:27]} {[%emt 00:00:11]} Rb4 {[%clk 00:32:57]} {[%emt
00:00:22]} 33. Ra1 {[%clk 00:41:22]} {[%emt 00:00:35]} Rxa4 {[%clk 00:32:47]}
{[%emt 00:00:41]} 34. b3 {[%clk 00:40:43]} {[%emt 00:01:22]} 1-0

[Event "2. Itzehoer Schach Open"]
[Site "Itzehoe, Germany"]
[Date "2023.05.01"]
[Round "5.28"]
[White "Thomsen, Flemming"]
[Black "Eitel, Luc"]
[Result "0-1"]
[TimeControl "90 min / 40 Züge + 30 min + 30 Sek pro Zug"]
[WhiteElo "1517"]
[BlackElo "1383"]

1. b3 {[%clk 01:30:47]} {[%emt 00:00:12]} d5 {[%clk 01:29:26]} {[%emt
00:01:33]} 2. Bb2 {[%clk 01:31:11]} {[%emt 00:00:07]} c5 {[%clk 01:29:38]}
{[%emt 00:00:18]} 3. e3 {[%clk 01:31:22]} {[%emt 00:00:19]} e6 {[%clk
01:29:04]} {[%emt 00:01:04]} 4. Bb5+ {[%clk 01:31:19]} {[%emt 00:00:32]} Bd7
{[%clk 01:29:25]} {[%emt 00:00:10]} 5. Bxd7+ {[%clk 01:31:29]} {[%emt
00:00:20]} Qxd7 {[%clk 01:29:26]} {[%emt 00:00:29]} 6. Ne2 {[%clk 01:31:31]}
{[%emt 00:00:26]} Nc6 {[%clk 01:29:37]} {[%emt 00:00:22]} 7. O-O {[%clk
01:31:39]} {[%emt 00:00:21]} Nf6 {[%clk 01:29:57]} {[%emt 00:00:10]} 8. f4
{[%clk 01:31:29]} {[%emt 00:00:41]} Be7 {[%clk 01:29:28]} {[%emt 00:00:58]} 9.
d3 {[%clk 01:28:54]} {[%emt 00:03:06]} O-O {[%clk 01:28:46]} {[%emt 00:01:10]}
10. Nd2 {[%clk 01:27:30]} {[%emt 00:01:54]} Rfd8 {[%clk 01:22:13]} {[%emt
00:07:04]} 11. Ng3 {[%clk 01:26:04]} {[%emt 00:01:57]} d4 {[%clk 01:19:08]}
{[%emt 00:03:34]} 12. e4 {[%clk 01:22:05]} {[%emt 00:04:29]} e5 {[%clk
01:15:00]} {[%emt 00:04:38]} 13. f5 {[%emt 00:11:31]} Rac8 {[%clk 01:12:08]} 14.
a3 {[%clk 01:08:25]} {[%emt 00:06:31]} Qd6 {[%clk 01:02:01]} {[%emt 00:10:36]}
15. Nh5 {[%clk 01:03:17]} {[%emt 00:05:38]} b6 {[%clk 00:59:44]} {[%emt
00:02:47]} 16. Nc4 {[%clk 00:58:11]} {[%emt 00:05:37]} Qc7 {[%clk 00:58:26]}
{[%emt 00:01:43]} 17. Nxf6+ {[%clk 00:57:26]} {[%emt 00:01:19]} Bxf6 {[%clk
00:58:43]} {[%emt 00:00:13]} 18. Qg4 {[%clk 00:54:20]} {[%emt 00:03:35]} b5
{[%clk 00:57:16]} {[%emt 00:01:59]} 19. Nd2 {[%clk 00:54:14]} {[%emt 00:00:35]}
Qe7 {[%clk 00:57:00]} {[%emt 00:00:46]} 20. Nf3 {[%clk 00:52:48]} {[%emt
00:01:56]} Rd6 {[%clk 00:53:41]} {[%emt 00:03:49]} 21. Bc1 {[%clk 00:51:31]}
{[%emt 00:01:47]} Kh8 {[%clk 00:50:47]} {[%emt 00:03:25]} 22. Ng5 {[%clk
00:47:59]} {[%emt 00:04:00]} Bxg5 {[%clk 00:48:32]} {[%emt 00:02:46]} 23. f6
{[%clk 00:44:18]} {[%emt 00:04:11]} Qe6 {[%clk 00:45:27]} {[%emt 00:03:36]} 24.
fxg7+ {[%clk 00:40:57]} {[%emt 00:03:50]} Kxg7 {[%clk 00:43:30]} {[%emt
00:02:27]} 25. Qxg5+ {[%clk 00:37:54]} {[%emt 00:03:33]} Qg6 {[%clk 00:43:13]}
{[%emt 00:00:46]} 26. Rf5 {[%clk 00:31:40]} {[%emt 00:06:45]} f6 {[%clk
00:35:31]} {[%emt 00:08:12]} 27. Qh4 {[%clk 00:27:50]} {[%emt 00:04:20]} Kh8
{[%clk 00:31:52]} {[%emt 00:04:09]} 28. Rf3 {[%clk 00:24:09]} {[%emt 00:04:11]}
Rg8 {[%clk 00:29:55]} {[%emt 00:02:26]} 29. Rg3 {[%clk 00:22:55]} {[%emt
00:01:45]} Qf7 {[%clk 00:29:43]} {[%emt 00:00:19]} 30. Rxg8+ {[%clk 00:19:08]}
{[%emt 00:04:40]} Qxg8 {[%clk 00:29:18]} {[%emt 00:00:55]} 31. Bd2 {[%clk
00:17:45]} {[%emt 00:01:53]} Ne7 {[%clk 00:27:42]} {[%emt 00:01:57]} 32. a4
{[%clk 00:14:58]} {[%emt 00:03:27]} Ng6 {[%clk 00:25:46]} {[%emt 00:02:25]} 33.
Qg4 {[%clk 00:12:21]} {[%emt 00:03:08]} b4 {[%clk 00:23:33]} {[%emt 00:02:42]}
34. Rf1 {[%clk 00:11:51]} {[%emt 00:01:01]} Qe6 {[%clk 00:22:03]} {[%emt
00:01:55]} 35. Qxe6 {[%clk 00:08:20]} {[%emt 00:04:05]} Rxe6 {[%clk 00:21:46]}
{[%emt 00:00:48]} 36. Bh6 {[%clk 00:07:44]} {[%emt 00:01:06]} Kg8 {[%clk
00:20:15]} {[%emt 00:02:00]} 37. g3 {[%clk 00:07:02]} {[%emt 00:01:12]} Ne7
{[%clk 00:19:50]} {[%emt 00:00:53]} 38. h4 {[%clk 00:04:57]} {[%emt 00:02:36]}
f5 {[%clk 00:16:49]} {[%emt 00:03:33]} 39. Bg5 {[%clk 00:01:36]} {[%emt
00:03:51]} fxe4 {[%clk 00:16:07]} {[%emt 00:01:12]} 40. dxe4 {[%clk 00:01:34]}
{[%emt 00:00:31]} Kg7 {[%clk 00:16:08]} {[%emt 00:00:28]} 41. h5 {[%clk
00:29:48]} {[%emt 00:02:17]} h6 {[%clk 00:45:10]} {[%emt 00:01:28]} 42. Bh4
{[%clk 00:28:24]} {[%emt 00:01:54]} Nc6 {[%clk 00:43:04]} {[%emt 00:02:29]} 43.
Rf3 {[%clk 00:26:43]} {[%emt 00:02:18]} Ne7 {[%clk 00:34:11]} {[%emt 00:09:22]}
44. Kf2 {[%clk 00:26:13]} {[%emt 00:01:00]} Nc8 {[%clk 00:32:18]} {[%emt
00:02:24]} 45. Ke2 {[%clk 00:24:26]} {[%emt 00:02:17]} Nb6 {[%clk 00:29:56]}
{[%emt 00:02:51]} 46. Kd3 {[%clk 00:22:26]} {[%emt 00:02:31]} c4+ {[%clk
00:28:01]} {[%emt 00:02:25]} 47. bxc4 {[%clk 00:22:03]} {[%emt 00:00:53]} Nxa4
{[%clk 00:28:27]} {[%emt 00:00:05]} 48. c5 {[%clk 00:19:12]} {[%emt 00:03:21]}
Nxc5+ {[%clk 00:25:20]} {[%emt 00:03:37]} 49. Kc4 {[%clk 00:19:30]} {[%emt
00:00:12]} Nd7 {[%clk 00:22:59]} {[%emt 00:02:52]} 50. Kxb4 {[%clk 00:18:18]}
{[%emt 00:01:42]} Nf6 {[%clk 00:22:36]} {[%emt 00:00:52]} 51. Bxf6+ {[%clk
00:17:36]} {[%emt 00:01:12]} Rxf6 {[%clk 00:22:59]} {[%emt 00:00:07]} 52. Ra3
{[%clk 00:12:02]} {[%emt 00:06:04]} Rf7 {[%clk 00:19:21]} {[%emt 00:04:08]} 53.
Ra6 {[%emt 00:06:50]} Rc7 {[%clk 00:15:22]} 54. Kb3 {[%clk 00:08:44]} {[%emt
00:01:57]} Rc3+ {[%clk 00:15:22]} {[%emt 00:00:30]} 55. Kb4 {[%clk 00:08:13]}
{[%emt 00:01:02]} Rxg3 {[%clk 00:15:21]} {[%emt 00:00:31]} 56. Rxa7+ {[%clk
00:08:29]} {[%emt 00:00:14]} Kf6 {[%clk 00:15:45]} {[%emt 00:00:05]} 57. Rh7
{[%clk 00:05:34]} {[%emt 00:03:25]} Kg5 {[%clk 00:13:48]} {[%emt 00:02:26]} 58.
Rg7+ {[%clk 00:03:41]} {[%emt 00:02:25]} Kh4 {[%clk 00:12:50]} {[%emt
00:01:26]} 59. Rxg3 {[%clk 00:03:41]} {[%emt 00:00:31]} Kxg3 {[%clk 00:12:36]}
{[%emt 00:00:44]} 60. Kc4 {[%clk 00:02:35]} {[%emt 00:01:37]} Kf3 {[%clk
00:12:34]} {[%emt 00:00:26]} 61. Kd5 {[%emt 00:02:19]} Kf4 {[%emt 00:00:02]} 62.
Ke6 Kxe4 {[%emt 00:00:02]} 63. Kf6 {[%clk 00:00:30]} {[%emt 00:00:01]} 0-1

[Event "2. Itzehoer Schach Open"]
[Site "Itzehoe, Germany"]
[Date "2023.05.01"]
[Round "5.23"]
[White "Frahm, Ben Jonas"]
[Black "Richter, Ruediger"]
[Result "0-1"]
[TimeControl "90 min / 40 Züge + 30 min + 30 Sek pro Zug"]
[WhiteElo "1406"]
[BlackElo "1869"]

1. e4 {[%clk 01:30:56]} {[%emt 00:00:03]} c5 {[%clk 01:30:54]} {[%emt
00:00:07]} 2. c3 {[%clk 01:31:21]} {[%emt 00:00:05]} e5 {[%clk 01:31:07]}
{[%emt 00:00:17]} 3. Nf3 {[%clk 01:31:43]} {[%emt 00:00:08]} Nc6 {[%clk
01:31:29]} {[%emt 00:00:07]} 4. d4 {[%clk 01:32:03]} {[%emt 00:00:10]} cxd4
{[%clk 01:31:51]} {[%emt 00:00:09]} 5. cxd4 {[%clk 01:32:27]} {[%emt 00:00:06]}
exd4 {[%clk 01:31:36]} {[%emt 00:00:45]} 6. Nxd4 {[%clk 01:32:44]} {[%emt
00:00:13]} Bc5 {[%clk 01:31:26]} {[%emt 00:00:40]} 7. Nxc6 {[%clk 01:32:43]}
{[%emt 00:00:30]} bxc6 {[%clk 01:31:40]} {[%emt 00:00:17]} 8. Bc4 {[%clk
01:31:59]} {[%emt 00:01:14]} Ne7 {[%clk 01:28:05]} {[%emt 00:04:04]} 9. Bxf7+
{[%clk 01:31:14]} {[%emt 00:01:15]} Kxf7 {[%clk 01:27:56]} {[%emt 00:00:39]} 10.
Qh5+ {[%clk 01:31:36]} {[%emt 00:00:08]} Ng6 {[%clk 01:27:44]} {[%emt
00:00:42]} 11. Qxc5 {[%clk 01:31:52]} {[%emt 00:00:15]} Ba6 {[%clk 01:25:38]}
{[%emt 00:02:36]} 12. Bg5 {[%clk 01:29:20]} {[%emt 00:03:02]} Qc7 {[%clk
01:24:56]} {[%emt 00:01:12]} 13. Nd2 {[%clk 01:26:47]} {[%emt 00:03:03]} Rab8
{[%clk 01:22:45]} {[%emt 00:02:40]} 14. Nb3 {[%clk 01:14:13]} {[%emt 00:13:05]}
Rb5 {[%clk 01:16:52]} {[%emt 00:06:23]} 15. Qe3 {[%clk 01:12:24]} {[%emt
00:02:18]} Qe5 {[%clk 01:12:22]} {[%emt 00:05:00]} 16. Qf3+ {[%clk 01:12:04]}
{[%emt 00:00:51]} Ke8 {[%clk 01:11:10]} {[%emt 00:01:42]} 17. Be3 {[%clk
01:11:15]} {[%emt 00:01:20]} Rb4 {[%clk 01:08:57]} {[%emt 00:02:42]} 18. O-O-O
{[%clk 01:10:20]} {[%emt 00:01:24]} Rxe4 {[%clk 01:05:00]} {[%emt 00:04:28]} 19.
Rd4 {[%clk 01:05:47]} {[%emt 00:05:03]} d5 {[%clk 00:58:08]} {[%emt 00:07:20]}
20. Rxe4 {[%clk 01:04:50]} {[%emt 00:01:29]} dxe4 {[%clk 00:58:10]} {[%emt
00:00:28]} 21. Qg4 {[%clk 01:02:34]} {[%emt 00:02:45]} Kf7 {[%clk 00:44:16]}
{[%emt 00:14:24]} 22. Qd7+ {[%clk 01:00:40]} {[%emt 00:02:24]} Ne7 {[%clk
00:41:46]} {[%emt 00:03:00]} 23. Qxa7 {[%clk 00:56:04]} {[%emt 00:05:06]} Bd3
{[%clk 00:40:46]} {[%emt 00:01:30]} 24. Qd4 {[%clk 00:52:39]} {[%emt 00:03:56]}
Qb5 {[%clk 00:37:05]} {[%emt 00:04:10]} 25. Qc5 {[%clk 00:46:45]} {[%emt
00:06:25]} Qa6 {[%clk 00:36:49]} {[%emt 00:00:46]} 26. a3 {[%clk 00:45:42]}
{[%emt 00:01:33]} Rb8 {[%clk 00:32:44]} {[%emt 00:04:34]} 27. Qh5+ {[%clk
00:43:20]} {[%emt 00:02:52]} Kg8 {[%clk 00:32:03]} {[%emt 00:01:11]} 28. Na5
{[%clk 00:24:27]} {[%emt 00:19:24]} Nd5 {[%clk 00:17:34]} {[%emt 00:14:59]} 29.
Qe5 {[%clk 00:23:58]} {[%emt 00:00:59]} Ra8 {[%clk 00:16:24]} {[%emt 00:01:40]}
30. Bd4 {[%clk 00:23:26]} {[%emt 00:01:01]} Nf6 {[%clk 00:16:33]} {[%emt
00:00:21]} 31. Qe6+ {[%clk 00:23:25]} {[%emt 00:00:32]} Kh8 {[%clk 00:15:49]}
{[%emt 00:01:14]} 32. Bxf6 {[%clk 00:22:53]} {[%emt 00:01:02]} Qxa5 {[%clk
00:14:51]} {[%emt 00:01:28]} 33. Bxg7+ {[%clk 00:21:09]} {[%emt 00:02:14]} Kxg7
{[%clk 00:15:10]} {[%emt 00:00:11]} 34. Qe7+ {[%clk 00:21:19]} {[%emt
00:00:20]} Kg8 {[%clk 00:13:08]} {[%emt 00:02:32]} 35. Qe6+ {[%clk 00:21:19]}
{[%emt 00:00:29]} Kf8 {[%clk 00:13:30]} {[%emt 00:00:08]} 36. Qd6+ {[%clk
00:20:08]} {[%emt 00:01:41]} Ke8 {[%clk 00:13:18]} {[%emt 00:00:42]} 37. Qe6+
{[%clk 00:20:06]} {[%emt 00:00:32]} Kd8 {[%clk 00:13:35]} {[%emt 00:00:12]} 38.
Qd6+ {[%clk 00:19:44]} {[%emt 00:00:54]} Kc8 {[%clk 00:13:52]} {[%emt
00:00:12]} 39. Qe6+ {[%clk 00:19:25]} {[%emt 00:00:49]} Kb7 {[%clk 00:13:57]}
{[%emt 00:00:26]} 40. Qd7+ {[%clk 00:18:24]} {[%emt 00:01:31]} Qc7 {[%clk
00:13:29]} {[%emt 00:00:57]} 41. Qd4 {[%clk 00:16:32]} {[%emt 00:02:22]} Rd8
{[%clk 00:07:34]} {[%emt 00:06:26]} 42. Qb4+ {[%clk 00:16:15]} {[%emt
00:00:47]} Kc8 {[%clk 00:07:43]} {[%emt 00:00:20]} 43. g3 {[%clk 00:15:03]}
{[%emt 00:01:42]} Qe5 {[%clk 00:06:42]} {[%emt 00:01:31]} 44. Re1 {[%clk
00:12:48]} {[%emt 00:02:45]} Qd5 {[%clk 00:06:21]} {[%emt 00:00:51]} 45. Qc3
{[%clk 00:11:35]} {[%emt 00:01:44]} Bb5 {[%clk 00:02:23]} {[%emt 00:04:27]} 46.
b3 {[%clk 00:10:52]} {[%emt 00:01:14]} Qe6 {[%clk 00:01:14]} {[%emt 00:01:39]}
47. a4 {[%clk 00:09:36]} {[%emt 00:01:46]} Bd3 {[%clk 00:01:10]} {[%emt
00:00:34]} 48. Kb2 {[%clk 00:08:40]} {[%emt 00:01:26]} Qd5 {[%clk 00:29:44]}
{[%emt 00:01:55]} 49. Re3 {[%clk 00:38:01]} {[%emt 00:01:10]} Bf1 {[%clk
00:28:12]} {[%emt 00:02:01]} 50. Re1 {[%clk 00:37:05]} {[%emt 00:01:27]} Bg2
{[%clk 00:26:52]} {[%emt 00:01:50]} 51. Rc1 {[%clk 00:36:22]} {[%emt 00:01:13]}
Qd2+ {[%clk 00:25:00]} {[%emt 00:02:21]} 52. Qxd2 {[%clk 00:36:25]} {[%emt
00:00:27]} Rxd2+ {[%clk 00:25:23]} {[%emt 00:00:07]} 53. Rc2 {[%clk 00:36:51]}
{[%emt 00:00:05]} Rd6 {[%clk 00:25:37]} {[%emt 00:00:16]} 54. Kc3 {[%clk
00:36:24]} {[%emt 00:00:56]} Kb7 {[%clk 00:25:43]} {[%emt 00:00:24]} 55. Kc4
{[%clk 00:36:23]} {[%emt 00:00:31]} Bf1+ {[%clk 00:25:44]} {[%emt 00:00:30]} 56.
Kb4 {[%clk 00:36:00]} {[%emt 00:00:52]} Bd3 {[%clk 00:23:19]} {[%emt 00:02:55]}
57. Rc5 {[%clk 00:35:23]} {[%emt 00:01:07]} Rf6 {[%clk 00:22:38]} {[%emt
00:01:12]} 58. Rh5 {[%clk 00:34:45]} {[%emt 00:01:08]} Rxf2 {[%clk 00:22:54]}
{[%emt 00:00:14]} 59. Rxh7+ {[%clk 00:35:09]} {[%emt 00:00:07]} Ka6 {[%clk
00:22:42]} {[%emt 00:00:41]} 60. Kc3 {[%clk 00:33:52]} {[%emt 00:01:47]} Rc2+
{[%clk 00:22:47]} {[%emt 00:00:25]} 61. Kd4 {[%clk 00:33:48]} {[%emt 00:00:34]}
c5+ {[%clk 00:22:17]} {[%emt 00:01:00]} 62. Ke3 {[%clk 00:33:28]} {[%emt
00:00:50]} Re2+ {[%clk 00:22:03]} {[%emt 00:00:44]} 63. Kf4 {[%clk 00:33:50]}
{[%emt 00:00:08]} Re1 {[%clk 00:19:58]} {[%emt 00:02:34]} 64. Re7 {[%clk
00:33:30]} {[%emt 00:00:50]} Ka5 {[%clk 00:19:49]} {[%emt 00:00:39]} 65. Re5
{[%clk 00:32:34]} {[%emt 00:01:27]} Kb4 {[%clk 00:20:01]} {[%emt 00:00:18]} 66.
g4 {[%clk 00:32:32]} {[%emt 00:00:31]} Kxb3 {[%clk 00:20:14]} {[%emt 00:00:18]}
67. Rxc5 {[%clk 00:30:37]} {[%emt 00:02:25]} e3 {[%clk 00:20:22]} {[%emt
00:00:22]} 68. Re5 {[%clk 00:29:44]} {[%emt 00:01:23]} e2 {[%clk 00:20:34]}
{[%emt 00:00:17]} 69. Kg5 {[%clk 00:28:08]} {[%emt 00:02:06]} Rf1 {[%clk
00:20:07]} {[%emt 00:00:57]} 70. h4 {[%clk 00:28:20]} {[%emt 00:00:19]} e1=Q
{[%clk 00:19:17]} {[%emt 00:01:21]} 71. Rxe1 {[%clk 00:28:44]} {[%emt
00:00:05]} Rxe1 {[%clk 00:19:43]} {[%emt 00:00:04]} 72. h5 {[%clk 00:28:42]}
{[%emt 00:00:31]} Kxa4 {[%clk 00:18:15]} {[%emt 00:01:59]} 73. Kf6 {[%clk
00:28:31]} {[%emt 00:00:40]} Rh1 {[%clk 00:17:45]} {[%emt 00:01:00]} 74. Kg5
{[%clk 00:28:26]} {[%emt 00:00:35]} Kb5 {[%clk 00:17:52]} {[%emt 00:00:23]} 75.
Kh6 {[%clk 00:28:20]} {[%emt 00:00:36]} Be2 {[%clk 00:17:42]} {[%emt 00:00:41]}
76. Kg6 {[%clk 00:28:40]} {[%emt 00:00:09]} Bxg4 {[%clk 00:17:55]} {[%emt
00:00:16]} 0-1

[Event "2. Itzehoer Schach Open"]
[Site "Itzehoe, Germany"]
[Date "2023.05.01"]
[Round "5.22"]
[White "Liu, Jan Luca"]
[Black "Papenfuss, Kai"]
[Result "0-1"]
[TimeControl "90 min / 40 Züge + 30 min + 30 Sek pro Zug"]
[WhiteElo "1073"]
[BlackElo "1751"]

1. e4 {[%clk 01:30:20]} {[%emt 00:00:40]} c5 {[%clk 01:30:53]} {[%emt
00:00:08]} 2. Nf3 {[%clk 01:30:44]} {[%emt 00:00:05]} e6 {[%clk 01:31:16]}
{[%emt 00:00:07]} 3. d4 {[%clk 01:29:07]} {[%emt 00:02:08]} cxd4 {[%clk
01:31:03]} {[%emt 00:00:43]} 4. Nxd4 {[%clk 01:29:15]} {[%emt 00:00:22]} Nf6
{[%clk 01:31:24]} {[%emt 00:00:08]} 5. Nc3 {[%clk 01:29:39]} {[%emt 00:00:06]}
Nc6 {[%clk 01:31:45]} {[%emt 00:00:09]} 6. Nf3 {[%clk 01:29:23]} {[%emt
00:00:46]} Bc5 {[%clk 01:15:33]} {[%emt 00:16:42]} 7. Bc4 {[%clk 01:25:19]}
{[%emt 00:04:35]} a6 {[%clk 01:09:31]} {[%emt 00:06:31]} 8. Bb3 {[%clk
01:24:26]} {[%emt 00:01:23]} b5 {[%clk 01:07:42]} {[%emt 00:02:19]} 9. Bg5
{[%clk 01:24:35]} {[%emt 00:00:21]} Qb6 {[%clk 01:03:00]} {[%emt 00:05:12]} 10.
Qd2 {[%clk 01:23:18]} {[%emt 00:01:47]} Ng4 {[%clk 00:59:39]} {[%emt 00:03:50]}
11. Bh4 {[%clk 01:20:26]} {[%emt 00:03:23]} Nge5 {[%clk 00:49:18]} {[%emt
00:10:51]} 0-1